bitfinex/quotes_SOLUSD_20220113
["timestamp","ask_amount","ask_price","bid_price","bid_amount"]
[1642099324691,2.67,149.81,149.72,26.65129997]
[1642099324893,2.67,149.81,149.72,38.56809518]
[1642099325091,2.67,149.83,149.73,2.67]
[1642099325297,13.07173034,149.83,149.74,39.91020535]
[1642099325499,2.67,149.82,149.74,106.30020535]
[1642099325893,2.67,149.82,149.75,10.0144]
[1642099326493,2.92,149.82,149.75,10.0144]
[1642099326694,2.67,149.85,149.75,14.33439521]
[1642099326904,2.67,149.85,149.76,24.7847]
[1642099327095,12.9327,149.85,149.78,10.0125]
[1642099327495,26.58999333,149.85,149.78,10.0125]
[1642099328295,12.9327,149.85,149.78,10.0125]
[1642099328599,2.92,149.85,149.78,10.0125]
[1642099328795,2.92,149.85,149.78,10.2725]
[1642099329195,2.92,149.85,149.78,10.0125]
[1642099329794,0.25,149.85,149.78,10.0125]
[1642099329996,2.669,149.86,149.78,10.0125]
[1642099330296,2.669,149.86,149.78,32.9413]
[1642099331197,12.6805,149.86,149.78,32.9413]
[1642099331897,2.919,149.86,149.78,32.9413]
[1642099333701,2.669,149.86,149.78,32.9413]
[1642099334000,2.669,149.87,149.78,32.9413]
[1642099334201,9.61,149.88,149.83,10.009]
[1642099334603,12.678,149.9,149.84,17.45082719]
[1642099334604,2.669,149.9,149.84,17.45082719]
[1642099335006,6.13324989,149.92,149.84,17.45082719]
[1642099335208,3.46524989,149.92,149.84,17.45082719]
[1642099336038,14.80425978,149.91,149.84,17.45082719]
[1642099336240,14.80425978,149.91,149.86,10.0072]
[1642099336637,14.80425978,149.91,149.81,2.668]
[1642099336838,1.64999521,149.9,149.81,26.5834]
[1642099337039,2.669,149.89,149.81,23.9154]
[1642099337239,12.6786,149.89,149.81,33.9251]
[1642099337439,14.32859521,149.89,149.81,33.9251]
[1642099337639,4.31899521,149.89,149.81,33.9251]
[1642099338041,10.56899521,149.89,149.81,33.9251]
[1642099338243,13.97939854,149.88,149.81,33.9251]
[1642099338446,2.669,149.87,149.81,10.0097]
[1642099338844,2.919,149.87,149.81,10.0097]
[1642099340948,2.669,149.87,149.81,10.0097]
[1642099341153,2.669,149.89,149.81,10.0097]
[1642099341346,2.669,149.9,149.81,10.2697]
[1642099341547,2.669,149.9,149.81,10.0097]
[1642099341746,2.669,149.9,149.81,10.2697]
[1642099342247,13.86820976,149.89,149.81,10.0097]
[1642099342449,2.669,149.88,149.82,15.90109395]
[1642099342647,2.669,149.9,149.85,10.006]
[1642099342845,2.668,149.91,149.85,10.006]
[1642099344046,2.918,149.91,149.85,10.006]
[1642099344246,2.668,149.91,149.85,25.18339886]
[1642099344447,2.668,149.91,149.83,23.301]
[1642099344648,2.668,149.91,149.83,33.3068]
[1642099344948,2.668,149.91,149.83,33.5668]
[1642099345548,2.918,149.91,149.83,33.5668]
[1642099346751,2.918,149.91,149.84,66.39]
[1642099346950,1.918,149.91,149.84,76.6553]
[1642099347149,1.918,149.91,149.83,23.301]
[1642099347355,1.918,149.91,149.8,2.668]
[1642099347550,9.61,149.9,149.8,2.668]
[1642099347750,2.669,149.89,149.8,2.668]
[1642099348151,2.669,149.9,149.8,12.6757]
[1642099348352,3.46524989,149.92,149.81,16.91310684]
[1642099348552,3.46524989,149.92,149.82,76.0]
[1642099348950,3.46524989,149.92,149.82,84.15999521]
[1642099349149,3.46524989,149.92,149.83,23.8164]
[1642099349350,3.46524989,149.95,149.85,66.39]
[1642099349552,3.46524989,149.95,149.86,23.9542]
[1642099349949,3.46524989,149.95,149.87,9.61]
[1642099350350,11.20215542,149.97,149.87,9.61]
[1642099350550,13.22064083,149.96,149.87,9.61]
[1642099350751,12.674,149.95,149.85,25.3678]
[1642099350953,18.674,149.95,149.84,9.61]
[1642099351351,18.924,149.95,149.84,9.61]
[1642099351752,13.47024989,149.97,149.85,36.801]
[1642099351951,3.46524989,149.97,149.86,9.61]
[1642099352154,3.46524989,149.97,149.87,69.058]
[1642099352351,3.46524989,149.95,149.88,33.6175]
[1642099352551,3.46524989,149.95,149.89,66.39]
[1642099352751,3.46524989,149.95,149.9,9.61]
[1642099352951,3.46524989,149.95,149.91,10.0012]
[1642099353150,6.13324989,150.01,149.92,66.39]
[1642099353351,3.46524989,150.01,149.92,66.39]
[1642099353555,3.46524989,150.01,149.92,0.26]
[1642099353953,6.13124989,150.01,149.92,15.96560845]
[1642099354153,3.46524989,150.02,149.93,4.31599521]
[1642099354554,3.46524989,150.02,149.94,68.03999521]
[1642099354754,3.46524989,150.02,149.95,2.666]
[1642099354954,3.46524989,150.02,149.95,2.926]
[1642099355154,3.46524989,150.02,149.95,28.44927003]
[1642099355358,16.26833275,150.03,149.95,94.83927003]
[1642099355555,3.46524989,150.03,149.95,94.83927003]
[1642099355857,3.46524989,150.03,149.96,1.64999521]
[1642099356256,4.31599521,150.02,149.89,49.2637]
[1642099356455,10.0019,150.01,149.9,10.0019]
[1642099356657,2.666,150.0,149.9,12.6679]
[1642099356859,15.42008676,150.0,149.91,16.60305644]
[1642099357156,20.92008676,150.0,149.91,16.60305644]
[1642099357356,21.17008676,150.0,149.9,2.666]
[1642099357759,31.17268676,150.0,149.9,2.666]
[1642099357956,31.17268676,150.0,149.9,2.926]
[1642099358156,34.63793665,150.0,149.9,2.926]
[1642099358560,36.28793186,150.0,149.9,2.666]
[1642099358757,43.27193186,150.0,149.9,2.666]
[1642099358957,13.07524989,149.99,149.84,3.82319081]
[1642099359159,10.0065,149.95,149.84,3.82319081]
[1642099359357,2.668,149.94,149.84,3.82319081]
[1642099359557,14.58219934,149.93,149.84,3.82319081]
[1642099359757,2.668,149.92,149.84,3.82319081]
[1642099359956,2.918,149.92,149.84,3.82319081]
[1642099360156,2.918,149.92,149.83,16.94357853]
[1642099360356,2.918,149.92,149.83,14.27557853]
[1642099360559,2.918,149.92,149.83,80.66557853]
[1642099360760,2.918,149.92,149.83,66.39]
[1642099361367,2.918,149.92,149.83,66.65]
[1642099361590,2.918,149.92,149.83,76.397]
[1642099361788,2.918,149.92,149.84,17.47775847]
[1642099361989,0.25,149.92,149.84,17.47775847]
[1642099362389,8.668,149.94,149.84,17.47775847]
[1642099362590,8.668,149.94,149.87,66.39]
[1642099362792,3.46524989,149.95,149.88,16.12432931]
[1642099362991,3.46524989,149.95,149.89,66.39]
[1642099363391,3.46524989,149.95,149.89,0.26]
[1642099363592,3.46524989,149.95,149.89,10.2625]
[1642099363794,14.63161836,149.97,149.89,10.2625]
[1642099363995,14.88161836,149.97,149.9,66.39]
[1642099364192,14.88161836,149.97,149.89,0.26]
[1642099364592,14.88161836,149.97,149.88,16.63432931]
[1642099364793,14.88161836,149.97,149.88,26.37752931]
[1642099365192,14.88161836,149.97,149.89,66.39]
[1642099365392,14.63161836,149.97,149.89,66.39]
[1642099365592,2.668,149.99,149.9,2.666]
[1642099365793,0.25,149.97,149.9,2.666]
[1642099365993,0.25,149.97,149.9,2.926]
[1642099366396,0.25,149.97,149.9,79.3184]
[1642099366894,2.666,149.97,149.9,76.6524]
[1642099367093,2.916,149.97,149.9,76.6524]
[1642099368394,0.25,149.97,149.9,76.6524]
[1642099368694,16.37004745,149.98,149.9,76.6524]
[1642099370193,26.37354745,149.98,149.9,66.65]
[1642099370394,32.37354745,149.98,149.9,0.26]
[1642099370594,32.37354745,149.98,149.89,23.2731]
[1642099373295,40.73954745,149.98,149.87,23.6553]
[1642099373496,11.25999521,149.97,149.86,2.666]
[1642099373794,10.0079,149.92,149.86,2.666]
[1642099373996,2.668,149.91,149.86,2.666]
[1642099374496,8.918,149.91,149.86,2.666]
[1642099375296,6.0,149.91,149.85,66.39]
[1642099375596,33.1698335,149.92,149.85,69.318]
[1642099375798,33.1698335,149.92,149.85,66.65]
[1642099375996,33.4198335,149.92,149.85,66.65]
[1642099376197,23.4124335,149.92,149.85,66.65]
[1642099376801,17.4124335,149.92,149.84,27.5289]
[1642099377000,17.4124335,149.92,149.84,27.7789]
[1642099377199,17.1624335,149.92,149.84,27.7789]
[1642099377800,17.1624335,149.92,149.84,27.5289]
[1642099378000,17.1624335,149.92,149.84,94.1789]
[1642099378201,17.1624335,149.92,149.85,10.0063]
[1642099378601,23.1624335,149.92,149.85,10.2663]
[1642099378801,6.0,149.92,149.85,76.6563]
[1642099379001,0.25,149.92,149.85,76.6563]
[1642099379409,8.918,149.95,149.85,76.6563]
[1642099379902,8.918,149.95,149.87,66.39]
[1642099380102,10.2557,149.95,149.87,76.655]
[1642099380305,2.668,149.96,149.87,76.655]
[1642099380503,3.46524989,149.97,149.87,86.515]
[1642099381507,19.00375547,149.97,149.87,86.515]
[1642099381704,1.8643787,149.96,149.88,2.668]
[1642099381908,1.8643787,149.96,149.89,22.80786754]
[1642099382207,1.8643787,149.96,149.92,66.39]
[1642099382605,1.8643787,149.96,149.92,66.65]
[1642099383306,1.8643787,149.96,149.92,83.06270798]
[1642099383505,1.8643787,149.96,149.92,93.06480798]
[1642099383706,1.8643787,149.96,149.92,76.6521]
[1642099384208,1.8643787,149.97,149.9,2.666]
[1642099384405,13.061,149.96,149.88,1.91105097]
[1642099384609,17.08079305,149.95,149.88,1.91105097]
[1642099384806,2.668,149.94,149.88,1.91105097]
[1642099385006,8.918,149.94,149.88,1.91105097]
[1642099385206,10.0087,149.91,149.85,1.91105097]
[1642099385608,16.2587,149.91,149.85,1.91105097]
[1642099385808,6.0,149.91,149.85,1.91105097]
[1642099386210,25.3764903,149.92,149.84,18.12757531]
[1642099386410,0.25,149.91,149.84,18.12757531]
[1642099386808,18.9257,149.92,149.84,28.13477531]
[1642099387009,10.2577,149.92,149.85,2.668]
[1642099387217,1.8643787,149.93,149.85,2.668]
[1642099387411,1.8643787,149.92,149.85,2.928]
[1642099387838,1.8643787,149.92,149.85,3.178]
[1642099388012,1.8643787,149.92,149.85,13.1844]
[1642099388215,1.8643787,149.93,149.85,13.1844]
[1642099388415,1.8643787,149.93,149.86,66.39]
[1642099388615,1.8643787,149.93,149.86,66.64]
[1642099388814,1.8643787,149.93,149.88,66.39]
[1642099389015,1.8643787,149.93,149.88,66.9]
[1642099389215,1.8643787,149.94,149.88,66.9]
[1642099390315,1.8643787,149.94,149.9,15.91957581]
[1642099390516,1.8643787,149.94,149.9,16.42957581]
[1642099391015,1.8643787,149.96,149.9,16.42957581]
[1642099392115,1.8643787,149.96,149.9,26.43237581]
[1642099392315,10.0032,149.98,149.9,26.43237581]
[1642099392316,1.8643787,149.97,149.9,26.43237581]
[1642099392715,1.3643787,149.97,149.9,26.43237581]
[1642099393514,7.3643787,149.97,149.9,92.82237581]
[1642099393720,1.3643787,149.97,149.9,92.82237581]
[1642099394521,7.3643787,149.97,149.9,76.9028]
[1642099394721,7.3643787,149.97,149.9,76.6528]
[1642099394921,7.6143787,149.97,149.9,66.65]
[1642099395747,13.86852624,149.96,149.88,2.666]
[1642099395947,20.11852624,149.96,149.87,118.0355]
[1642099396148,22.78652624,149.96,149.88,10.0046]
[1642099396349,16.78652624,149.96,149.88,10.0046]
[1642099397150,26.79112624,149.96,149.88,10.0046]
[1642099397550,32.79112624,149.96,149.88,10.0046]
[1642099397852,32.79112624,149.96,149.88,10.2646]
[1642099399050,32.79112624,149.96,149.88,0.26]
[1642099399249,32.79112624,149.96,149.87,10.0052]
[1642099399449,50.27112145,149.96,149.83,2.668]
[1642099399648,50.27112145,149.96,149.81,2.668]
[1642099399849,53.73637134,149.96,149.81,6.49119081]
[1642099400054,53.73637134,149.96,149.81,72.88119081]
[1642099400248,53.73637134,149.96,149.81,86.79791958]
[1642099400650,53.73637134,149.96,149.81,87.04791958]
[1642099400850,3.46524989,149.94,149.81,83.22472877]
[1642099401050,24.37125791,149.92,149.83,10.0082]
[1642099401451,37.72825791,149.92,149.83,10.0082]
[1642099401651,37.72825791,149.92,149.83,10.2682]
[1642099402051,37.72825791,149.92,149.84,14.23907488]
[1642099402250,2.668,149.91,149.84,24.24637488]
[1642099402450,2.668,149.91,149.84,24.50637488]
[1642099402651,8.918,149.91,149.84,24.50637488]
[1642099403151,8.668,149.91,149.84,24.50637488]
[1642099403357,8.668,149.91,149.84,90.89637488]
[1642099403754,6.0,149.91,149.84,90.89637488]
[1642099404055,2.668,149.93,149.84,90.89637488]
[1642099404254,2.668,149.94,149.84,90.89637488]
[1642099404456,3.46524989,149.95,149.84,91.14637488]
[1642099404656,13.07524989,149.96,149.84,115.74427488]
[1642099404856,25.62398845,149.96,149.84,115.74427488]
[1642099405056,31.62398845,149.96,149.84,115.74427488]
[1642099405459,22.01398845,149.96,149.84,125.35427488]
[1642099405658,18.54873856,149.96,149.84,125.35427488]
[1642099405857,12.54873856,149.96,149.84,125.35427488]
[1642099406058,12.54873856,149.96,149.89,10.0035]
[1642099406358,12.54873856,149.96,149.89,76.3935]
[1642099406559,12.54873856,149.96,149.89,76.6535]
[1642099406959,12.79873856,149.96,149.89,76.6535]
[1642099407660,0.25,149.96,149.89,76.6535]
[1642099407859,8.918,149.97,149.89,76.6535]
[1642099409160,8.918,149.97,149.9,81.23001268]
[1642099409361,6.25,149.97,149.91,10.0026]
[1642099409660,0.25,149.97,149.91,10.2626]
[1642099410062,33.49683966,149.98,149.91,10.2626]
[1642099411264,33.49683966,149.98,149.9,66.39]
[1642099411465,33.49683966,149.98,149.9,66.65]
[1642099412866,36.96208955,149.98,149.9,66.65]
[1642099413768,33.49683966,149.98,149.9,66.65]
[1642099414370,33.49683966,149.98,149.9,0.26]
[1642099414572,33.49683966,149.98,149.89,10.2642]
[1642099415173,33.49683966,149.98,149.89,32.7905]
[1642099418680,30.83083966,149.98,149.89,32.7905]
[1642099419175,30.83083966,149.98,149.89,99.1805]
[1642099420381,12.6696,149.97,149.89,99.1805]
[1642099420581,16.2536,149.97,149.89,99.1805]
[1642099421702,18.9196,149.97,149.89,32.5305]
[1642099421903,26.5396,149.97,149.89,22.5263]
[1642099426210,18.9196,149.97,149.89,22.5263]
[1642099426809,22.38484989,149.97,149.89,22.5263]
[1642099435721,18.9196,149.97,149.89,22.5263]
[1642099437120,12.9196,149.97,149.89,22.5263]
[1642099438322,12.9196,149.97,149.86,79.0624]
[1642099438522,18.9196,149.97,149.87,23.6548]
[1642099439525,18.9196,149.97,149.87,33.6608]
[1642099440624,18.9196,149.97,149.87,23.3948]
[1642099440826,30.17959521,149.97,149.87,23.3948]
[1642099441027,30.17959521,149.97,149.85,22.9673]
[1642099441225,37.43259521,149.97,149.85,22.9673]
[1642099441425,40.8978451,149.97,149.85,22.9673]
[1642099442427,15.0907782,149.95,149.85,22.9673]
[1642099442629,22.45657135,149.91,149.85,22.9673]
[1642099443027,28.70657135,149.91,149.85,22.9673]
[1642099448557,28.70657135,149.91,149.84,22.8148]
[1642099448756,28.20657135,149.91,149.84,22.8148]
[1642099450258,28.20657135,149.91,149.84,22.3148]
[1642099450459,34.98157135,149.91,149.84,22.3148]
[1642099450861,10.0106,149.87,149.81,2.668]
[1642099451061,24.1796,149.87,149.81,2.668]
[1642099451261,14.85548953,149.86,149.81,2.668]
[1642099451461,21.10548953,149.86,149.81,2.668]
[1642099452263,21.10548953,149.86,149.79,26.35]
[1642099453162,31.11698953,149.86,149.79,26.35]
[1642099454573,31.11698953,149.86,149.79,36.3613]
[1642099455266,25.11698953,149.86,149.79,36.3613]
[1642099455469,21.10548953,149.86,149.79,36.3613]
[1642099455672,0.25,149.86,149.79,36.3613]
[1642099455870,2.918,149.9,149.79,36.8713]
[1642099456075,0.25,149.9,149.79,36.8713]
[1642099456271,6.25,149.9,149.79,36.8713]
[1642099456871,0.25,149.9,149.79,42.8713]
[1642099457074,6.25,149.9,149.8,66.39]
[1642099457272,6.25,149.9,149.81,17.75853211]
[1642099457472,0.25,149.9,149.83,10.0082]
[1642099457672,6.25,149.9,149.83,10.0082]
[1642099457873,6.0,149.9,149.83,10.2682]
[1642099458073,6.25,149.9,149.83,10.2682]
[1642099458275,0.25,149.9,149.83,10.2682]
[1642099458977,32.69849456,149.91,149.83,10.2682]
[1642099459609,18.9272,149.91,149.84,25.44100886]
[1642099459808,2.669,149.91,149.84,25.44100886]
[1642099460007,6.13324989,149.95,149.84,25.95100886]
[1642099460207,3.46524989,149.95,149.85,90.9435]
[1642099460607,16.71800066,149.94,149.85,91.2035]
[1642099461008,22.71800066,149.94,149.85,91.4535]
[1642099461208,16.71800066,149.94,149.88,10.0049]
[1642099461507,6.13324989,149.97,149.88,10.2649]
[1642099461809,6.13324989,149.97,149.87,16.49793013]
[1642099462210,12.13324989,149.97,149.85,24.8135]
[1642099462508,8.668,149.97,149.85,25.0635]
[1642099463109,14.69227302,149.96,149.85,42.33118486]
[1642099463309,2.668,149.95,149.87,10.0062]
[1642099463509,8.668,149.95,149.87,10.2662]
[1642099463909,6.25,149.95,149.87,34.3366]
[1642099464310,0.25,149.95,149.87,34.3366]
[1642099464512,20.94227302,149.96,149.87,34.3366]
[1642099464714,2.668,149.95,149.87,34.3366]
[1642099465112,18.9232,149.95,149.87,34.3366]
[1642099466213,8.918,149.95,149.89,10.0046]
[1642099466615,8.918,149.95,149.87,24.0704]
[1642099466813,8.918,149.95,149.87,24.3304]
[1642099466814,15.657,149.95,149.87,24.3304]
[1642099467615,25.6621,149.95,149.87,24.3304]
[1642099468015,25.6621,149.95,149.87,23.3304]
[1642099468318,25.6621,149.95,149.87,23.0704]
[1642099468716,25.6621,149.95,149.83,32.6738]
[1642099468916,25.6621,149.95,149.83,32.9338]
[1642099469514,25.6621,149.95,149.84,23.251]
[1642099470115,9.61,149.94,149.84,23.511]
[1642099470320,10.0092,149.89,149.84,23.511]
[1642099470514,15.24096628,149.88,149.84,23.511]
[1642099470916,21.49096628,149.88,149.84,23.511]
[1642099471716,15.49096628,149.88,149.84,23.511]
[1642099472318,0.25,149.88,149.84,23.511]
[1642099472522,16.2585,149.9,149.84,23.511]
[1642099473331,13.77554426,149.89,149.84,23.511]
[1642099473621,20.02554426,149.89,149.84,23.511]
[1642099474019,30.03474426,149.89,149.84,23.511]
[1642099475522,20.02554426,149.89,149.84,33.5192]
[1642099475922,14.02554426,149.89,149.84,33.5192]
[1642099476223,0.25,149.89,149.84,33.5192]
[1642099476425,6.25,149.89,149.84,33.5192]
[1642099476624,8.919,149.9,149.84,33.5192]
[1642099477222,6.25,149.9,149.84,23.511]
[1642099477423,8.918,149.9,149.84,23.511]
[1642099478024,18.9265,149.9,149.84,23.511]
[1642099484338,18.9265,149.9,149.83,32.6739]
[1642099484339,18.9265,149.9,149.83,10.0089]
[1642099484536,18.9265,149.9,149.82,10.0095]
[1642099484937,18.9265,149.9,149.82,10.2695]
[1642099487063,18.9265,149.9,149.82,0.26]
[1642099487264,18.9265,149.9,149.81,33.9508]
[1642099487465,18.9265,149.9,149.81,23.941]
[1642099490667,18.9265,149.9,149.8,10.0101]
[1642099490668,85.3165,149.9,149.8,10.0101]
[1642099490868,85.3165,149.9,149.78,2.669]
[1642099490869,94.9265,149.9,149.78,2.669]
[1642099491069,1.64999521,149.89,149.78,2.669]
[1642099491268,10.0164,149.83,149.78,2.669]
[1642099491466,2.67,149.82,149.78,2.669]
[1642099491667,17.03881486,149.81,149.78,2.669]
[1642099491867,2.67,149.8,149.72,3.82319081]
[1642099492068,15.922,149.8,149.72,3.82319081]
[1642099492266,17.57199521,149.8,149.72,3.82319081]
[1642099492466,1.64999521,149.79,149.72,3.82319081]
[1642099492669,10.0192,149.75,149.72,3.82319081]
[1642099492867,17.6182,149.75,149.72,3.82319081]
[1642099493074,23.8682,149.75,149.68,529.46103645]
[1642099493769,23.8682,149.75,149.68,528.96103645]
[1642099494071,23.8682,149.75,149.68,3.82319081]
[1642099494472,23.8682,149.75,149.67,24.34987799]
[1642099495874,23.8682,149.75,149.67,27.01987799]
[1642099496075,17.8682,149.75,149.67,26.77987799]
[1642099496873,10.2692,149.75,149.68,66.39]
[1642099497074,0.25,149.75,149.68,76.6679]
[1642099497474,16.2679,149.76,149.68,76.6679]
[1642099497674,2.67,149.78,149.68,76.6679]
[1642099497876,2.67,149.81,149.7,66.39]
[1642099498077,39.52364989,149.82,149.71,35.3864]
[1642099498285,3.46524989,149.83,149.72,66.39]
[1642099498577,20.43998415,149.83,149.74,15.07853611]
[1642099498777,20.43998415,149.83,149.75,2.67]
[1642099498978,2.67,149.85,149.75,2.93]
[1642099499176,13.07524989,149.87,149.75,105.83029521]
[1642099499177,2.67,149.86,149.75,105.83029521]
[1642099499378,3.46524989,149.87,149.75,115.69029521]
[1642099499983,19.67462516,149.87,149.75,115.69029521]
[1642099500178,26.22037527,149.87,149.75,115.69029521]
[1642099500378,32.22037527,149.87,149.75,115.69029521]
[1642099500982,22.20937527,149.87,149.75,115.69029521]
[1642099501381,6.0,149.87,149.75,115.69029521]
[1642099501580,8.67,149.88,149.75,115.69029521]
[1642099501780,8.67,149.88,149.75,121.69029521]
[1642099502179,2.67,149.88,149.75,121.69029521]
[1642099502781,15.87231831,149.89,149.75,121.69029521]
[1642099502981,15.87231831,149.89,149.75,145.88279521]
[1642099503782,15.87231831,149.89,149.75,145.38279521]
[1642099504583,15.87231831,149.89,149.77,15.44454958]
[1642099504784,15.87231831,149.89,149.82,10.0083]
[1642099504984,15.87231831,149.89,149.82,76.6583]
[1642099505383,16.12231831,149.89,149.82,76.6583]
[1642099505583,26.13161831,149.89,149.82,10.2683]
[1642099505783,32.13161831,149.89,149.82,0.26]
[1642099505985,32.13161831,149.89,149.81,10.2701]
[1642099506183,39.17861831,149.89,149.8,23.4603]
[1642099506384,1.64999521,149.88,149.77,9.61]
[1642099506583,12.59353408,149.86,149.76,19.70164877]
[1642099506784,2.67,149.85,149.76,15.87845796]
[1642099506984,8.92,149.85,149.77,10.0125]
[1642099507787,8.92,149.85,149.77,76.4025]
[1642099508186,18.9319,149.85,149.77,10.0125]
[1642099508888,18.9319,149.85,149.76,15.87845796]
[1642099509091,18.9319,149.85,149.76,92.28195796]
[1642099509290,18.9319,149.85,149.76,10.0135]
[1642099509491,28.69689521,149.85,149.76,0.26]
[1642099509690,28.69689521,149.85,149.75,47.5744]
[1642099509897,27.0469,149.85,149.75,47.5744]
[1642099510094,27.0469,149.85,149.72,16.10319081]
[1642099510291,27.0469,149.85,149.73,38.26199869]
[1642099511295,18.9319,149.85,149.74,1.64999521]
[1642099512219,18.9319,149.85,149.74,1.90999521]
[1642099512426,18.9319,149.85,149.77,24.53310897]
[1642099512820,18.9319,149.85,149.77,24.29310897]
[1642099513021,2.92,149.85,149.77,24.29310897]
[1642099513222,4.75147979,149.85,149.77,24.29310897]
[1642099513422,2.08147979,149.85,149.77,24.29310897]
[1642099513727,1.83147979,149.85,149.8,10.0105]
[1642099513922,1.83147979,149.85,149.81,66.39]
[1642099514322,10.0085,149.9,149.81,0.26]
[1642099514323,1.83147979,149.86,149.81,0.26]
[1642099514927,1.83147979,149.86,149.8,85.02833182]
[1642099515324,18.35362744,149.89,149.8,83.37833661]
[1642099515529,0.25,149.86,149.8,83.37833661]
[1642099516125,0.25,149.86,149.83,10.0083]
[1642099516328,10.50047979,149.89,149.84,6.06439993]
[1642099516524,10.50047979,149.89,149.84,6.32439993]
[1642099516725,11.84057979,149.89,149.84,6.32439993]
[1642099516926,1.83147979,149.88,149.84,6.32439993]
[1642099517730,1.83147979,149.88,149.84,16.33239993]
[1642099517927,0.25,149.88,149.84,16.33239993]
[1642099518327,2.08147979,149.89,149.84,16.33239993]
[1642099519327,8.08147979,149.89,149.84,16.33239993]
[1642099519527,2.669,149.88,149.84,16.33239993]
[1642099519728,2.08147979,149.89,149.84,16.33239993]
[1642099519928,8.08147979,149.89,149.84,16.33239993]
[1642099520130,2.08147979,149.89,149.84,16.33239993]
[1642099520328,8.08147979,149.89,149.84,16.33239993]
[1642099520529,2.08147979,149.89,149.84,16.33239993]
[1642099521532,18.09057979,149.89,149.84,6.06439993]
[1642099521729,2.669,149.88,149.84,6.06439993]
[1642099522129,2.919,149.88,149.84,6.06439993]
[1642099522530,24.27504151,149.88,149.84,6.06439993]
[1642099522729,26.1065213,149.88,149.8,24.2929]
[1642099523129,36.1166213,149.88,149.81,10.0101]
[1642099523329,30.1166213,149.88,149.81,10.0101]
[1642099523531,1.83147979,149.87,149.81,10.0101]
[1642099523730,2.669,149.86,149.81,10.0101]
[1642099523932,4.50047979,149.87,149.81,76.4001]
[1642099524133,4.50047979,149.87,149.81,76.6601]
[1642099524331,1.83147979,149.87,149.81,76.6601]
[1642099524734,0.00890553,149.96,149.84,66.39]
[1642099524931,27.27769433,150.02,149.92,120.12]
[1642099524932,7.83489433,150.02,149.92,120.12]
[1642099525131,7.83489433,150.02,149.93,12.276]
[1642099525331,4.52839433,150.02,149.93,13.92599521]
[1642099525532,15.11058745,150.07,149.94,120.12]
[1642099525732,34.666,150.06,149.93,12.19190743]
[1642099525933,66.39,150.05,149.93,9.61]
[1642099526132,2.666,150.04,149.93,9.61]
[1642099526331,2.666,150.04,149.89,2.666]
[1642099526532,13.92599521,150.04,149.89,2.666]
[1642099526734,3.08139748,150.03,149.89,2.666]
[1642099526932,2.666,150.02,149.93,10.0025]
[1642099527132,4.31599521,150.02,149.93,10.0025]
[1642099527534,4.56599521,150.02,149.89,82.3947]
[1642099527932,4.56599521,150.02,149.89,82.6547]
[1642099528133,4.31599521,150.02,149.91,10.0028]
[1642099528332,2.666,150.02,149.92,69.056]
[1642099528534,2.666,150.02,149.92,83.55333248]
[1642099529133,2.666,150.04,149.94,10.0009]
[1642099529339,2.666,150.06,149.95,2.666]
[1642099529535,8.666,150.06,149.95,3.176]
[1642099529735,2.666,150.06,149.95,0.26]
[1642099529935,1.22440368,150.05,149.93,26.5396]
[1642099530138,2.666,150.04,149.93,26.2796]
[1642099530338,2.666,150.04,149.93,26.0296]
[1642099530536,18.6658,150.04,149.94,10.0005]
[1642099530736,1.64999521,150.03,149.94,10.0005]
[1642099530937,2.666,150.02,149.94,10.0005]
[1642099531338,8.666,150.02,149.94,10.0005]
[1642099531537,8.666,150.02,149.94,10.2605]
[1642099531941,2.666,150.02,149.94,0.26]
[1642099532137,8.666,150.02,149.93,23.3636]